[Event "Early-Titled-Tuesday-Blitz-May-14-2024"]
[Site "Chess.com"]
[Date "2024.05.14"]
[Round "7"]
[White "Alenzer"]
[Black "KatakuriDono"]
[Result "0-1"]
[WhiteElo "2203"]
[BlackElo "2307"]
[TimeControl "180+1"]
[EndTime "9:20:14 PDT"]
[Termination "KatakuriDono won by resignation"]

1. e4 {[%clk 0:02:59.5]} 1... c5 {[%clk 0:02:59.5]} 2. Nf3 {[%clk 0:02:58.8]}
2... Nc6 {[%clk 0:02:59.7]} 3. d4 {[%clk 0:02:59.4]} 3... cxd4 {[%clk 0:03:00]}
4. Nxd4 {[%clk 0:03:00]} 4... Qb6 {[%clk 0:03:00.1]} 5. Nb3 {[%clk 0:02:59.2]}
5... Nf6 {[%clk 0:02:59.9]} 6. Bd3 {[%clk 0:02:55.9]} 6... d5 {[%clk 0:02:56.9]}
7. exd5 {[%clk 0:02:55]} 7... Nxd5 {[%clk 0:02:55.7]} 8. O-O {[%clk 0:02:55.1]}
8... g6 {[%clk 0:02:51.9]} 9. Bxg6 {[%clk 0:02:48.8]} 9... hxg6 {[%clk
0:02:52.8]} 10. Qxd5 {[%clk 0:02:48.8]} 10... Be6 {[%clk 0:02:51.3]} 11. Qf3
{[%clk 0:02:35.5]} 11... O-O-O {[%clk 0:02:45.1]} 12. Be3 {[%clk 0:02:34.5]}
12... Qc7 {[%clk 0:02:19]} 13. Bf4 {[%clk 0:02:34.3]} 13... Qd7 {[%clk
0:02:18.9]} 14. Nc3 {[%clk 0:02:33.2]} 14... Bg7 {[%clk 0:02:16.2]} 15. Nc5
{[%clk 0:02:25.1]} 15... Qd4 {[%clk 0:02:09.6]} 16. Nb3 {[%clk 0:02:00.2]} 16...
Qf6 {[%clk 0:01:57.5]} 17. Ne4 {[%clk 0:01:51]} 17... Qf5 {[%clk 0:01:51.6]} 18.
Rfd1 {[%clk 0:01:41.4]} 18... Bd5 {[%clk 0:01:46.7]} 19. Nbc5 {[%clk 0:01:13.9]}
19... e5 {[%clk 0:01:37.1]} 20. Nd6+ {[%clk 0:00:56.1]} 20... Rxd6 {[%clk
0:01:35.6]} 21. Rxd5 {[%clk 0:00:54.9]} 21... Rxd5 {[%clk 0:01:25.1]} 22. Qxd5
{[%clk 0:00:55]} 22... exf4 {[%clk 0:01:25.3]} 23. Qxf5+ {[%clk 0:00:43.4]}
23... gxf5 {[%clk 0:01:24.9]} 24. c3 {[%clk 0:00:39.6]} 24... Re8 {[%clk
0:01:20.1]} 25. Kf1 {[%clk 0:00:39.3]} 25... b6 {[%clk 0:01:18.3]} 26. Nd3
{[%clk 0:00:39.3]} 26... Bh6 {[%clk 0:01:15.5]} 27. a4 {[%clk 0:00:34.3]} 27...
Ne5 {[%clk 0:01:13]} 28. Nb4 {[%clk 0:00:29.4]} 28... Rd8 {[%clk 0:01:10.4]} 29.
Ke2 {[%clk 0:00:27]} 29... Nc4 {[%clk 0:01:08]} 30. Nd3 {[%clk 0:00:26.9]} 30...
f3+ {[%clk 0:01:03.7]} 31. gxf3 {[%clk 0:00:26.8]} 31... Nxb2 {[%clk 0:01:03.4]}
32. Nxb2 {[%clk 0:00:16.2]} 32... Rd2+ {[%clk 0:01:02.7]} 33. Kf1 {[%clk
0:00:16.8]} 33... Rxb2 {[%clk 0:01:03.3]} 34. a5 {[%clk 0:00:17.2]} 34... b5
{[%clk 0:01:02.4]} 35. a6 {[%clk 0:00:14.1]} 35... Bg7 {[%clk 0:01:01.4]} 36.
Ra5 {[%clk 0:00:11.6]} 36... Bxc3 {[%clk 0:00:59.5]} 37. Ra3 {[%clk 0:00:09.9]}
37... Bd4 {[%clk 0:00:57.9]} 38. Rd3 {[%clk 0:00:09.3]} 38... Rxf2+ {[%clk
0:00:56.3]} 39. Ke1 {[%clk 0:00:10]} 39... Bb6 {[%clk 0:00:54.9]} 40. Rc3+
{[%clk 0:00:08.9]} 40... Kd7 {[%clk 0:00:54]} 41. Rd3+ {[%clk 0:00:08.8]} 41...
Ke6 {[%clk 0:00:54.1]} 42. Rb3 {[%clk 0:00:05.8]} 42... Rxh2 {[%clk 0:00:52.7]}
43. Rxb5 {[%clk 0:00:05.7]} 43... Ra2 {[%clk 0:00:52.4]} 44. Rb3 {[%clk
0:00:03.5]} 44... Rxa6 {[%clk 0:00:51.8]} 45. Ke2 {[%clk 0:00:03.6]} 45... Ra2+
{[%clk 0:00:51.5]} 46. Ke1 {[%clk 0:00:03.8]} 46... Ke5 {[%clk 0:00:49.7]} 47.
Rb5+ {[%clk 0:00:03.8]} 47... Kf4 {[%clk 0:00:49.6]} 48. Rb3 {[%clk 0:00:04.7]}
48... Rh2 {[%clk 0:00:41.4]} 49. Kf1 {[%clk 0:00:04.8]} 49... Be3 {[%clk
0:00:37.7]} 50. Ra3 {[%clk 0:00:03.6]} 50... Kxf3 {[%clk 0:00:37.7]} 51. Rxe3+
{[%clk 0:00:01.2]} 51... Kxe3 {[%clk 0:00:37.5]} 52. Kg1 {[%clk 0:00:02.1]}
52... Rb2 {[%clk 0:00:37.5]} 53. Kh1 {[%clk 0:00:02.9]} 53... a5 {[%clk
0:00:36.8]} 0-1

[Event "Early-Titled-Tuesday-Blitz-May-14-2024"]
[Site "Chess.com"]
[Date "2024.05.14"]
[Round "7"]
[White "Aswathchess"]
[Black "MyDream003"]
[Result "1-0"]
[WhiteElo "2680"]
[BlackElo "2836"]
[TimeControl "180+1"]
[EndTime "9:20:15 PDT"]
[Termination "Aswathchess won on time"]

1. c4 {[%clk 0:02:57.4]} 1... e6 {[%clk 0:02:57.9]} 2. d4 {[%clk 0:02:56]} 2...
d5 {[%clk 0:02:58.4]} 3. Nf3 {[%clk 0:02:55.9]} 3... Nf6 {[%clk 0:02:58.8]} 4.
g3 {[%clk 0:02:56.3]} 4... Bb4+ {[%clk 0:02:58.6]} 5. Bd2 {[%clk 0:02:55.2]}
5... Be7 {[%clk 0:02:58.8]} 6. Bg2 {[%clk 0:02:55.3]} 6... O-O {[%clk
0:02:59.1]} 7. O-O {[%clk 0:02:56]} 7... c6 {[%clk 0:02:59.1]} 8. Bc3 {[%clk
0:02:55.4]} 8... b6 {[%clk 0:02:58.2]} 9. a4 {[%clk 0:02:54.2]} 9... Ba6 {[%clk
0:02:56.5]} 10. Nbd2 {[%clk 0:02:54]} 10... c5 {[%clk 0:02:50.1]} 11. Ne5 {[%clk
0:02:36.6]} 11... Qc8 {[%clk 0:02:40.8]} 12. cxd5 {[%clk 0:02:29.5]} 12... Nxd5
{[%clk 0:02:34.4]} 13. Qb3 {[%clk 0:02:27.1]} 13... Bb7 {[%clk 0:02:32.6]} 14.
Rfc1 {[%clk 0:02:24.4]} 14... Na6 {[%clk 0:02:22.8]} 15. Ndc4 {[%clk 0:02:08.7]}
15... Qd8 {[%clk 0:02:06.3]} 16. a5 {[%clk 0:01:52.8]} 16... Nxc3 {[%clk
0:01:18]} 17. bxc3 {[%clk 0:01:51.5]} 17... Bxg2 {[%clk 0:01:18.5]} 18. Kxg2
{[%clk 0:01:52.2]} 18... cxd4 {[%clk 0:01:17.7]} 19. axb6 {[%clk 0:01:45.7]}
19... Nc5 {[%clk 0:01:06.6]} 20. Qb5 {[%clk 0:01:18]} 20... axb6 {[%clk
0:01:05]} 21. Nc6 {[%clk 0:00:54.4]} 21... Qd5+ {[%clk 0:01:02.2]} 22. Kg1
{[%clk 0:00:54]} 22... Rxa1 {[%clk 0:00:38.8]} 23. Nxe7+ {[%clk 0:00:45.3]}
23... Kh8 {[%clk 0:00:38.7]} 24. Rxa1 {[%clk 0:00:44.6]} 24... Qb7 {[%clk
0:00:37.4]} 25. cxd4 {[%clk 0:00:42.2]} 25... Ne4 {[%clk 0:00:34.4]} 26. Qb4
{[%clk 0:00:40.6]} 26... Re8 {[%clk 0:00:32.5]} 27. Ne5 {[%clk 0:00:20.5]} 27...
g6 {[%clk 0:00:26]} 28. N7c6 {[%clk 0:00:16.7]} 28... Qc8 {[%clk 0:00:11.9]} 29.
Nxf7+ {[%clk 0:00:15.2]} 29... Kg7 {[%clk 0:00:11.8]} 30. Ra7 {[%clk 0:00:14.7]}
30... Kf6 {[%clk 0:00:09.3]} 31. Nfe5 {[%clk 0:00:13.3]} 31... Rf8 {[%clk
0:00:06]} 32. Nd7+ {[%clk 0:00:12.5]} 32... Kf5 {[%clk 0:00:06]} 33. Qb5+ {[%clk
0:00:10]} 33... Kg4 {[%clk 0:00:04.7]} 34. Nxf8 {[%clk 0:00:08.8]} 34... Qxf8
{[%clk 0:00:04.7]} 35. f3+ {[%clk 0:00:09.1]} 35... Kh3 {[%clk 0:00:05.1]} 36.
Qb1 {[%clk 0:00:06]} 36... Nd2 {[%clk 0:00:03.8]} 37. Rxh7+ {[%clk 0:00:05.5]}
1-0

[Event "Early-Titled-Tuesday-Blitz-May-14-2024"]
[Site "Chess.com"]
[Date "2024.05.14"]
[Round "7"]
[White "DarZay"]
[Black "Ariadna_Atreides"]
[Result "1-0"]
[WhiteElo "2318"]
[BlackElo "2220"]
[TimeControl "180+1"]
[EndTime "9:20:15 PDT"]
[Termination "DarZay won by resignation"]

1. e4 {[%clk 0:02:57.7]} 1... c6 {[%clk 0:02:59.7]} 2. d4 {[%clk 0:02:56.1]}
2... d5 {[%clk 0:03:00.3]} 3. e5 {[%clk 0:02:54.3]} 3... Bf5 {[%clk 0:02:59.9]}
4. Bd3 {[%clk 0:02:52.6]} 4... Bxd3 {[%clk 0:02:58.6]} 5. Qxd3 {[%clk
0:02:52.9]} 5... e6 {[%clk 0:02:58.7]} 6. f4 {[%clk 0:02:52.7]} 6... c5 {[%clk
0:02:57.7]} 7. c3 {[%clk 0:02:48.1]} 7... Nc6 {[%clk 0:02:55.4]} 8. Nf3 {[%clk
0:02:47.4]} 8... Rc8 {[%clk 0:02:47.9]} 9. O-O {[%clk 0:02:46.5]} 9... cxd4
{[%clk 0:02:45.3]} 10. cxd4 {[%clk 0:02:46.1]} 10... Nb4 {[%clk 0:02:45.1]} 11.
Qb5+ {[%clk 0:02:44.8]} 11... Qd7 {[%clk 0:02:45.7]} 12. Qxd7+ {[%clk
0:02:40.5]} 12... Kxd7 {[%clk 0:02:46.3]} 13. Nbd2 {[%clk 0:02:20.4]} 13... Nd3
{[%clk 0:02:35.6]} 14. Nb3 {[%clk 0:02:13.8]} 14... Nh6 {[%clk 0:02:30.6]} 15.
Rd1 {[%clk 0:02:12.6]} 15... Nxc1 {[%clk 0:02:29.4]} 16. Raxc1 {[%clk
0:02:10.9]} 16... b6 {[%clk 0:02:24.3]} 17. Rxc8 {[%clk 0:02:03.2]} 17... Kxc8
{[%clk 0:02:24.3]} 18. Rc1+ {[%clk 0:02:03.3]} 18... Kd7 {[%clk 0:02:15.5]} 19.
Kf2 {[%clk 0:01:56.6]} 19... Be7 {[%clk 0:02:11.7]} 20. Ke2 {[%clk 0:01:55.2]}
20... Rc8 {[%clk 0:02:03.6]} 21. Rxc8 {[%clk 0:01:54.1]} 21... Kxc8 {[%clk
0:02:03.4]} 22. Kd3 {[%clk 0:01:53.6]} 22... Kd7 {[%clk 0:01:55]} 23. a4 {[%clk
0:01:46]} 23... Kc6 {[%clk 0:01:52]} 24. a5 {[%clk 0:01:42.2]} 24... Bb4 {[%clk
0:01:47.7]} 25. axb6 {[%clk 0:01:41.1]} 25... axb6 {[%clk 0:01:47]} 26. Ng5
{[%clk 0:01:40.9]} 26... Be7 {[%clk 0:01:38.3]} 27. Nxh7 {[%clk 0:01:28.9]}
27... f6 {[%clk 0:01:33]} 28. h3 {[%clk 0:01:28.3]} 28... Kd7 {[%clk 0:01:13.9]}
29. exf6 {[%clk 0:01:18.6]} 29... gxf6 {[%clk 0:01:11.5]} 30. g4 {[%clk
0:01:18.6]} 30... Ke8 {[%clk 0:00:52.6]} 31. g5 {[%clk 0:01:00.1]} 31... fxg5
{[%clk 0:00:51.6]} 32. Nxg5 {[%clk 0:00:58.1]} 32... Kd7 {[%clk 0:00:45.3]} 33.
Nf3 {[%clk 0:00:55.8]} 33... Nf5 {[%clk 0:00:33]} 34. Ne5+ {[%clk 0:00:53]}
34... Kc7 {[%clk 0:00:30.8]} 35. Nd2 {[%clk 0:00:52.6]} 35... Bh4 {[%clk
0:00:28]} 36. Ndf3 {[%clk 0:00:47.9]} 36... Bf2 {[%clk 0:00:26]} 37. Ng6 {[%clk
0:00:47.2]} 37... Kd6 {[%clk 0:00:22]} 38. h4 {[%clk 0:00:46.7]} 38... Ng7
{[%clk 0:00:17.9]} 39. Nfe5 {[%clk 0:00:36.9]} 39... Bg3 {[%clk 0:00:14.4]} 40.
Ng4 {[%clk 0:00:33.4]} 40... Nh5 {[%clk 0:00:12.6]} 41. N4e5 {[%clk 0:00:31.2]}
41... Nxf4+ {[%clk 0:00:11]} 42. Nxf4 {[%clk 0:00:30.4]} 42... Bxf4 {[%clk
0:00:11.3]} 43. Ng6 {[%clk 0:00:29.4]} 43... Bh6 {[%clk 0:00:09.7]} 44. h5
{[%clk 0:00:28.7]} 44... Kd7 {[%clk 0:00:07.7]} 45. Ne5+ {[%clk 0:00:28.1]}
45... Ke8 {[%clk 0:00:05.2]} 46. b4 {[%clk 0:00:27.1]} 46... Ke7 {[%clk
0:00:04.2]} 47. b5 {[%clk 0:00:25]} 47... Bf4 {[%clk 0:00:04]} 48. Ng6+ {[%clk
0:00:23.6]} 48... Kf6 {[%clk 0:00:03.9]} 49. Nxf4 {[%clk 0:00:23.8]} 49... Kf5
{[%clk 0:00:04.3]} 50. Ke3 {[%clk 0:00:23.7]} 50... e5 {[%clk 0:00:03.9]} 51.
dxe5 {[%clk 0:00:23.6]} 51... Kxe5 {[%clk 0:00:04.5]} 52. Kd3 {[%clk 0:00:22.7]}
52... Kxf4 {[%clk 0:00:04.1]} 53. h6 {[%clk 0:00:23]} 1-0

[Event "Early-Titled-Tuesday-Blitz-May-14-2024"]
[Site "Chess.com"]
[Date "2024.05.14"]
[Round "7"]
[White "Aemulus20"]
[Black "VerdeNotte"]
[Result "1-0"]
[WhiteElo "2661"]
[BlackElo "2847"]
[TimeControl "180+1"]
[EndTime "9:20:17 PDT"]
[Termination "Aemulus20 won by resignation"]

1. e4 {[%clk 0:03:00.9]} 1... e5 {[%clk 0:02:59.4]} 2. Nf3 {[%clk 0:03:00.8]}
2... Nc6 {[%clk 0:02:59.8]} 3. Bb5 {[%clk 0:03:01.1]} 3... a6 {[%clk 0:02:59.6]}
4. Ba4 {[%clk 0:03:01.5]} 4... Nf6 {[%clk 0:02:59.9]} 5. O-O {[%clk 0:03:02.1]}
5... d6 {[%clk 0:03:00.5]} 6. c3 {[%clk 0:03:00.9]} 6... Bd7 {[%clk 0:03:00.4]}
7. Re1 {[%clk 0:03:00.2]} 7... g6 {[%clk 0:03:00.5]} 8. d4 {[%clk 0:03:00.4]}
8... Bg7 {[%clk 0:03:01]} 9. h3 {[%clk 0:02:59.4]} 9... O-O {[%clk 0:03:01]} 10.
Nbd2 {[%clk 0:02:56.6]} 10... exd4 {[%clk 0:03:01.5]} 11. cxd4 {[%clk
0:02:50.2]} 11... Nb4 {[%clk 0:03:01.9]} 12. Nf1 {[%clk 0:02:24.3]} 12... Bxa4
{[%clk 0:02:46.8]} 13. Qxa4 {[%clk 0:02:25.2]} 13... Nd3 {[%clk 0:02:44.8]} 14.
Re2 {[%clk 0:02:22.4]} 14... Re8 {[%clk 0:02:41.7]} 15. Ng3 {[%clk 0:02:10.3]}
15... c5 {[%clk 0:02:41.6]} 16. e5 {[%clk 0:01:37.5]} 16... Nd5 {[%clk
0:02:34.9]} 17. Qb3 {[%clk 0:01:16.5]} 17... N5f4 {[%clk 0:02:18.9]} 18. Bxf4
{[%clk 0:01:16.3]} 18... Nxf4 {[%clk 0:02:19.8]} 19. Re4 {[%clk 0:01:16.8]}
19... c4 {[%clk 0:02:04]} 20. Qc2 {[%clk 0:01:04.8]} 20... Nd3 {[%clk
0:02:00.7]} 21. Qxc4 {[%clk 0:00:58.4]} 21... d5 {[%clk 0:01:41]} 22. Qxd3
{[%clk 0:00:57.6]} 22... dxe4 {[%clk 0:01:41.6]} 23. Qxe4 {[%clk 0:00:58.3]}
23... Qb6 {[%clk 0:01:40.2]} 24. b3 {[%clk 0:00:56.7]} 24... Rac8 {[%clk
0:01:36.9]} 25. h4 {[%clk 0:00:48.8]} 25... h5 {[%clk 0:01:33.9]} 26. Re1 {[%clk
0:00:43.9]} 26... Qc6 {[%clk 0:01:17.4]} 27. Qf4 {[%clk 0:00:36.4]} 27... Qc3
{[%clk 0:01:13]} 28. Re3 {[%clk 0:00:23.5]} 28... Qa1+ {[%clk 0:01:01.5]} 29.
Kh2 {[%clk 0:00:23.6]} 29... Qxa2 {[%clk 0:00:53.8]} 30. Ng5 {[%clk 0:00:23.9]}
30... Rf8 {[%clk 0:00:54.1]} 31. Nxh5 {[%clk 0:00:21.3]} 31... Rc2 {[%clk
0:00:46.7]} 32. Rf3 {[%clk 0:00:16.5]} 32... Qb2 {[%clk 0:00:03.1]} 33. Nxg7
{[%clk 0:00:12]} 33... Qc1 {[%clk 0:00:03.7]} 34. Qxc1 {[%clk 0:00:11.5]} 34...
Rxc1 {[%clk 0:00:04]} 35. e6 {[%clk 0:00:10.2]} 35... Kxg7 {[%clk 0:00:04.1]}
36. exf7 {[%clk 0:00:09.4]} 36... Re1 {[%clk 0:00:03.8]} 37. d5 {[%clk
0:00:09.6]} 37... Re7 {[%clk 0:00:02.6]} 38. Ne6+ {[%clk 0:00:09.9]} 38... Kh6
{[%clk 0:00:00.4]} 39. Nxf8 {[%clk 0:00:10]} 39... g5 {[%clk 0:00:01]} 40. Ne6
{[%clk 0:00:10]} 40... Kh5 {[%clk 0:00:01.8]} 41. f8=Q {[%clk 0:00:10.1]} 41...
Rh7 {[%clk 0:00:02.4]} 42. Qf7+ {[%clk 0:00:08.7]} 42... Rxf7 {[%clk 0:00:02.4]}
43. Rxf7 {[%clk 0:00:09.6]} 43... gxh4 {[%clk 0:00:02.3]} 44. Rf5+ {[%clk
0:00:09.3]} 44... Kg6 {[%clk 0:00:03.2]} 45. Rg5+ {[%clk 0:00:09.6]} 45... Kf6
{[%clk 0:00:04.1]} 46. f4 {[%clk 0:00:09.9]} 46... a5 {[%clk 0:00:04.7]} 47. Nd4
{[%clk 0:00:10.1]} 47... Ke7 {[%clk 0:00:04.4]} 48. Rg6 {[%clk 0:00:09.4]} 48...
Kd7 {[%clk 0:00:04]} 49. f5 {[%clk 0:00:09.9]} 49... b5 {[%clk 0:00:03.8]} 50.
Nxb5 {[%clk 0:00:10.4]} 50... h3 {[%clk 0:00:04]} 51. gxh3 {[%clk 0:00:10.4]}
1-0

[Event "Early-Titled-Tuesday-Blitz-May-14-2024"]
[Site "Chess.com"]
[Date "2024.05.14"]
[Round "7"]
[White "Maria_Elayza"]
[Black "Lucky_Puncher"]
[Result "0-1"]
[WhiteElo "2278"]
[BlackElo "2556"]
[TimeControl "180+1"]
[EndTime "9:20:19 PDT"]
[Termination "Lucky_Puncher won by checkmate"]

1. d4 {[%clk 0:03:00.9]} 1... Nf6 {[%clk 0:03:00.3]} 2. Bf4 {[%clk 0:02:59]}
2... d6 {[%clk 0:03:00.1]} 3. Nc3 {[%clk 0:02:58]} 3... g6 {[%clk 0:03:00.6]} 4.
e4 {[%clk 0:02:57.5]} 4... Bg7 {[%clk 0:03:00.7]} 5. Qd2 {[%clk 0:02:57.8]} 5...
Nh5 {[%clk 0:02:57.2]} 6. Bh6 {[%clk 0:02:53.1]} 6... O-O {[%clk 0:02:55]} 7.
Bxg7 {[%clk 0:02:52.2]} 7... Nxg7 {[%clk 0:02:55.9]} 8. Bd3 {[%clk 0:02:51.2]}
8... e5 {[%clk 0:02:55.7]} 9. d5 {[%clk 0:02:49.3]} 9... Nd7 {[%clk 0:02:55.6]}
10. O-O-O {[%clk 0:02:49.5]} 10... a5 {[%clk 0:02:55.4]} 11. g4 {[%clk
0:02:46.2]} 11... Nc5 {[%clk 0:02:47.4]} 12. f3 {[%clk 0:02:44.9]} 12... f5
{[%clk 0:02:41.7]} 13. gxf5 {[%clk 0:02:37]} 13... gxf5 {[%clk 0:02:42.6]} 14.
exf5 {[%clk 0:02:34.6]} 14... Nxf5 {[%clk 0:02:34.2]} 15. Nge2 {[%clk
0:02:31.5]} 15... Kh8 {[%clk 0:02:31.3]} 16. Rdg1 {[%clk 0:02:27.8]} 16... Qf6
{[%clk 0:02:30.8]} 17. Ng3 {[%clk 0:02:26]} 17... Nd4 {[%clk 0:02:22.2]} 18. Be2
{[%clk 0:02:03.6]} 18... Bd7 {[%clk 0:02:05.6]} 19. Nce4 {[%clk 0:01:58.3]}
19... Nxe4 {[%clk 0:02:05.8]} 20. Nxe4 {[%clk 0:01:57.2]} 20... Qf4 {[%clk
0:02:06.2]} 21. Bd3 {[%clk 0:01:40.6]} 21... Nxf3 {[%clk 0:02:01.3]} 22. Qxf4
{[%clk 0:01:36.5]} 22... Rxf4 {[%clk 0:02:02.2]} 23. Rg3 {[%clk 0:01:31.8]}
23... Rg8 {[%clk 0:01:43.1]} 24. Rf1 {[%clk 0:01:15.1]} 24... Rgf8 {[%clk
0:01:24.4]} 25. b3 {[%clk 0:00:54.7]} 25... Nd4 {[%clk 0:01:03.7]} 26. Rfg1
{[%clk 0:00:44.3]} 26... Nf3 {[%clk 0:00:54.9]} 27. Rf1 {[%clk 0:00:42.9]} 27...
Bc8 {[%clk 0:00:46.3]} 28. Kb2 {[%clk 0:00:40.2]} 28... b6 {[%clk 0:00:43.9]}
29. a4 {[%clk 0:00:39.6]} 29... Bb7 {[%clk 0:00:44.2]} 30. c4 {[%clk 0:00:38]}
30... Bc8 {[%clk 0:00:44.6]} 31. Kc3 {[%clk 0:00:37.5]} 31... h6 {[%clk
0:00:32.9]} 32. Rf2 {[%clk 0:00:35.5]} 32... Nh4 {[%clk 0:00:29.3]} 33. Re2
{[%clk 0:00:24.5]} 33... Bf5 {[%clk 0:00:26.7]} 34. Ree3 {[%clk 0:00:16.7]}
34... Bxe4 {[%clk 0:00:17.1]} 35. Bxe4 {[%clk 0:00:17.6]} 35... Nf5 {[%clk
0:00:17.5]} 36. Bxf5 {[%clk 0:00:16.6]} 36... R8xf5 {[%clk 0:00:18.4]} 37. Rg6
{[%clk 0:00:16.6]} 37... Kh7 {[%clk 0:00:18.2]} 38. Re6 {[%clk 0:00:16.4]} 38...
Rf7 {[%clk 0:00:18]} 39. Re2 {[%clk 0:00:15.8]} 39... Rf3+ {[%clk 0:00:18.3]}
40. Kc2 {[%clk 0:00:15.8]} 40... Rh3 {[%clk 0:00:17.9]} 41. Rg2 {[%clk 0:00:16]}
41... Rhf3 {[%clk 0:00:17.9]} 42. Rgg6 {[%clk 0:00:16.4]} 42... Rh3 {[%clk
0:00:17.6]} 43. Rgf6 {[%clk 0:00:16.7]} 43... Rxh2+ {[%clk 0:00:17.1]} 44. Kd3
{[%clk 0:00:16.5]} 44... Rh3+ {[%clk 0:00:17.3]} 45. Kc2 {[%clk 0:00:16.4]}
45... Rg7 {[%clk 0:00:17.9]} 46. Re8 {[%clk 0:00:15.1]} 46... Rg2+ {[%clk
0:00:17.8]} 47. Kd1 {[%clk 0:00:14.9]} 47... Rh1+ {[%clk 0:00:18.1]} 48. Rf1
{[%clk 0:00:09.4]} 48... Rxf1# {[%clk 0:00:18.1]} 0-1

[Event "Early-Titled-Tuesday-Blitz-May-14-2024"]
[Site "Chess.com"]
[Date "2024.05.14"]
[Round "7"]
[White "xasid81"]
[Black "JoliyRoger"]
[Result "1-0"]
[WhiteElo "2594"]
[BlackElo "2420"]
[TimeControl "180+1"]
[EndTime "9:20:20 PDT"]
[Termination "xasid81 won on time"]

1. Nf3 {[%clk 0:03:00.9]} 1... Nf6 {[%clk 0:02:56.9]} 2. Nc3 {[%clk 0:03:01.8]}
2... d5 {[%clk 0:02:54.9]} 3. d4 {[%clk 0:03:01.9]} 3... c6 {[%clk 0:02:48.7]}
4. Bg5 {[%clk 0:03:01.2]} 4... Bf5 {[%clk 0:02:48.2]} 5. e3 {[%clk 0:03:00.7]}
5... Ne4 {[%clk 0:02:47.1]} 6. Nxe4 {[%clk 0:02:58.4]} 6... Bxe4 {[%clk
0:02:47.6]} 7. Bd3 {[%clk 0:02:57.5]} 7... Bg6 {[%clk 0:02:40.7]} 8. O-O {[%clk
0:02:55.2]} 8... Qb6 {[%clk 0:02:41.2]} 9. Rb1 {[%clk 0:02:53.1]} 9... e6 {[%clk
0:02:41.4]} 10. Bf4 {[%clk 0:02:48.4]} 10... Nd7 {[%clk 0:02:40]} 11. Ne5 {[%clk
0:02:47.8]} 11... Nf6 {[%clk 0:02:26.6]} 12. Nxg6 {[%clk 0:02:42.6]} 12... hxg6
{[%clk 0:02:25.8]} 13. h3 {[%clk 0:02:43.1]} 13... Be7 {[%clk 0:02:23.4]} 14. c4
{[%clk 0:02:42.7]} 14... dxc4 {[%clk 0:02:20.8]} 15. Bxc4 {[%clk 0:02:42.6]}
15... O-O {[%clk 0:02:21.2]} 16. b4 {[%clk 0:02:41.6]} 16... a6 {[%clk
0:02:20.1]} 17. a3 {[%clk 0:02:39]} 17... Rfd8 {[%clk 0:02:13.5]} 18. Qb3 {[%clk
0:02:34.6]} 18... Bd6 {[%clk 0:02:00.5]} 19. Bxe6 {[%clk 0:02:32.9]} 19... Bxf4
{[%clk 0:01:59.4]} 20. Bxf7+ {[%clk 0:02:32.8]} 20... Kh7 {[%clk 0:01:55.3]} 21.
exf4 {[%clk 0:02:31.7]} 21... Qxd4 {[%clk 0:01:53.6]} 22. Qg3 {[%clk 0:02:21.2]}
22... Qd3 {[%clk 0:01:43.7]} 23. Qh4+ {[%clk 0:02:16.2]} 23... Nh5 {[%clk
0:01:39.2]} 24. Rbe1 {[%clk 0:01:00.1]} 24... Qf5 {[%clk 0:01:04]} 25. Bxg6+
{[%clk 0:00:49.7]} 25... Qxg6 {[%clk 0:00:57.4]} 26. Re5 {[%clk 0:00:47.5]}
26... Rd5 {[%clk 0:00:53.4]} 27. Rxd5 {[%clk 0:00:39.8]} 27... cxd5 {[%clk
0:00:53.9]} 28. g4 {[%clk 0:00:40]} 28... Rf8 {[%clk 0:00:46.5]} 29. Rd1 {[%clk
0:00:30.5]} 29... Kg8 {[%clk 0:00:24.2]} 30. Qxh5 {[%clk 0:00:29.5]} 30... Qxh5
{[%clk 0:00:22.9]} 31. gxh5 {[%clk 0:00:30.4]} 31... Rf5 {[%clk 0:00:20.5]} 32.
Kg2 {[%clk 0:00:27]} 32... Rxh5 {[%clk 0:00:19.9]} 33. Kg3 {[%clk 0:00:24.4]}
33... g6 {[%clk 0:00:17.4]} 34. Kg4 {[%clk 0:00:22.5]} 34... Rf5 {[%clk
0:00:16.2]} 35. Re1 {[%clk 0:00:21.6]} 35... d4 {[%clk 0:00:10.5]} 36. Re8+
{[%clk 0:00:21.4]} 36... Kf7 {[%clk 0:00:10.4]} 37. Rd8 {[%clk 0:00:21.1]} 37...
a5 {[%clk 0:00:09.5]} 38. Rxd4 {[%clk 0:00:20.2]} 38... axb4 {[%clk 0:00:10.2]}
39. axb4 {[%clk 0:00:17.2]} 39... Rb5 {[%clk 0:00:09.3]} 40. Re4 {[%clk
0:00:17.5]} 40... Kf6 {[%clk 0:00:09.6]} 41. h4 {[%clk 0:00:17.6]} 41... Rd5
{[%clk 0:00:09.1]} 42. Rc4 {[%clk 0:00:16.4]} 42... Rb5 {[%clk 0:00:02.3]} 43.
Rd4 {[%clk 0:00:15.6]} 43... Kf7 {[%clk 0:00:00.5]} 44. f5 {[%clk 0:00:13.8]}
44... gxf5+ {[%clk 0:00:00.1]} 45. Kg5 {[%clk 0:00:13.7]} 1-0